[Event "FIDE WCCC G12 2018"]
[Site "Santiago de Compostela"]
[Date "2018.11.08"]
[Round "4"]
[White "Berezovsky, Fiorina"]
[Black "Rueda Nessi, Juana"]
[Result "0-1"]
[ECO "C05"]
[WhiteElo "1492"]
[BlackElo "1642"]
[Annotator "NA RC"]
[PlyCount "58"]
[EventDate "2018.11.04"]
[EventType "swiss"]
[EventCountry "ESP"]
[SourceTitle "playchess.com"]
[Source "ChessBase"]
[SourceQuality "1"]
[TimeControl "40/5400+30:1800+30"]

1. e4 {[%emt 0:00:00]} e6 {[%emt 0:01:10]} 2. d4 {[%emt 0:00:11]} d5 {[%emt 0:00:15]} 3. Nd2 {[%emt 0:00:34]} Nf6 {[%emt 0:00:14]} 4. e5 {[%emt 0:01:06]} Nfd7 {[%emt 0:00:10]} 5. Bd3 {[%emt 0:00:38]} c5 {[%emt 0:00:32]} 6. c3 {[%emt 0:01:19]} Nc6 {[%emt 0:00:14]} 7. Ngf3 {[%emt 0:01:02]} f6 {[%emt 0:00:51]} 8. exf6 {[%emt 0:01:52]} Nxf6 {[%emt 0:00:24]} 9. O-O {[%emt 0:01:14]} Bd6 {[%emt 0:05:05]} 10. Nb3 {[%emt 0:01:24]} Qc7 {[%emt 0:03:14]} 11. h3 {[%emt 0:02:38]} O-O {[%emt 0:01:26]} 12. Bg5 {[%emt 0:02:19]} Qf7 {[%emt 0:12:51]} 13. Qb1 {[%emt 0:08:40]} Qh5 {[%emt 0:14:34]} 14. h4 {[%emt 0:10:26]} h6 {[%emt 0:11:29]} 15. Bxf6 {[%emt 0:04:51]} Rxf6 {[%emt 0:01:53]} 16. a3 {[%emt 0:03:12]} Rxf3 {[%emt 0:05:36]} 17. gxf3 {[%emt 0:07:14]} Qxf3 {[%emt 0:03:26]} 18. Qd1 {[%emt 0:02:23]} Qh3 {[%emt 0:00:54]} 19. f4 {[%emt 0:22:49]} Qg3+ {[%emt 0:03:47]} 20. Kh1 {[%emt 0:00:27]} Qxh4+ {[%emt 0:00:35]} 21. Kg1 {[%emt 0:01:26]} Qg3+ {[%emt 0:02:37]} 22. Kh1 {[%emt 0:01:41]} Bxf4 {[%emt 0:00:30]} 23. Qc2 {[%emt 0:01:48]} Qh3+ {[%emt 0:00:24]} 24. Kg1 {[%emt 0:00:12]} Be3+ {[%emt 0:00:06]} 25. Rf2 {[%emt 0:00:28]} Qg3+ {[%emt 0:01:01]} 26. Kf1 {[%emt 0:08:10]} Bxf2 {[%emt 0:00:26]} 27. Bh7+ {[%emt 0:01:02]} Kh8 {[%emt 0:00:45]} 28. Qxf2 {[%emt 0:02:32]} Qxf2+ {[%emt 0:00:15]} 29. Kxf2 {[%emt 0:00:10]} Kxh7 {[%emt 0:00:06]} 0-1

[Event "FIDE WCCC G12 2018"]
[Site "Santiago de Compostela"]
[Date "2018.11.08"]
[Round "4"]
[White "Badalyan, Seda"]
[Black "Zavivaeva, Emilia"]
[Result "0-1"]
[ECO "B01"]
[WhiteElo "1466"]
[BlackElo "1633"]
[Annotator "NA"]
[PlyCount "64"]
[EventDate "2018.11.04"]
[EventType "swiss"]
[EventCountry "ESP"]
[SourceTitle "playchess.com"]
[Source "ChessBase"]
[SourceQuality "1"]
[TimeControl "40/5400+30:1800+30"]

1. e4 {[%emt 0:00:00]} d5 {[%emt 0:00:30]} 2. exd5 {[%emt 0:00:00]} Qxd5 {[%emt 0:00:34]} 3. Nc3 {[%emt 0:00:00]} Qd6 {[%emt 0:00:09]} 4. Be2 {[%emt 0:00:50]} g6 {[%emt 0:01:12]} 5. Nf3 {[%emt 0:01:14]} Bg7 {[%emt 0:00:17]} 6. O-O {[%emt 0:00:59]} Nf6 {[%emt 0:00:36]} 7. d4 {[%emt 0:02:23]} a6 {[%emt 0:00:46]} 8. Be3 {[%emt 0:01:39]} O-O {[%emt 0:00:32]} 9. Nb1 {[%emt 0:01:41]} b5 {[%emt 0:03:06]} 10. c3 {[%emt 0:01:32]} Bb7 {[%emt 0:06:32]} 11. Nbd2 {[%emt 0:02:34]} Nbd7 {[%emt 0:15:08]} 12. a4 {[%emt 0:07:01]} b4 {[%emt 0:05:38]} 13. Nc4 {[%emt 0:02:57]} Qe6 {[%emt 0:11:40]} 14. Re1 {[%emt 0:16:00]} bxc3 {[%emt 0:06:11]} 15. bxc3 {[%emt 0:00:31]} Bxf3 {[%emt 0:17:38]} 16. gxf3 {[%emt 0:04:09]} Nd5 {[%emt 0:03:59]} 17. Bd2 {[%emt 0:05:45]} c5 {[%emt 0:15:41]} 18. Bd3 {[%emt 0:09:01]} Qc6 {[%emt 0:04:32]} 19. Ne3 {[%emt 0:08:26]} Rad8 {[%emt 0:04:12]} 20. Be4 {[%emt 0:04:10]} e6 {[%emt 0:00:33]} 21. Rc1 {[%emt 0:04:25]} N7f6 {[%emt 0:00:30]} 22. Bd3 {[%emt 0:03:04]} cxd4 {[%emt 0:00:29]} 23. cxd4 {[%emt 0:00:37]} Qa8 {[%emt 0:00:32]} 24. Nc4 {[%emt 0:01:39]} Nh5 {[%emt 0:00:29]} 25. Be4 {[%emt 0:01:34]} Bxd4 {[%emt 0:00:06]} 26. Ba5 {[%emt 0:01:41]} Qa7 {[%emt 0:00:51]} 27. Rf1 {[%emt 0:01:38]} Rd7 {[%emt 0:00:30]} 28. Qc2 {[%emt 0:01:40]} Ndf4 {[%emt 0:00:20]} 29. Be1 {[%emt 0:02:01]} Rc8 {[%emt 0:00:40]} 30. Qa2 {[%emt 0:00:55]} Rdc7 {[%emt 0:00:17]} 31. Ba5 {[%emt 0:00:57]} Qc5 {[%emt 0:00:47]} 32. Bxc7 {[%emt 0:00:29]} Qg5+ {[%emt 0:00:04] Bd6} 0-1

[Event "FIDE WCCC G12 2018"]
[Site "Santiago de Compostela"]
[Date "2018.11.09"]
[Round "5"]
[White "Kairbekova, Amina"]
[Black "Munkhzul, Davaakhuu"]
[Result "1-0"]
[ECO "B33"]
[WhiteElo "1939"]
[BlackElo "1781"]
[Annotator "NA RC"]
[PlyCount "77"]
[EventDate "2018.11.04"]
[EventType "swiss"]
[EventCountry "ESP"]
[SourceTitle "playchess.com"]
[Source "ChessBase"]
[SourceQuality "1"]
[TimeControl "40/5400+30:1800+30"]

{[%evp 8,77,28,19,31,32767,32767,32767,15,32767,32767,32767,32767,32767,32767,32767,32767,32767,32767,58,32767,78,81,88,83,81,107,110,116,112,111,115,425,438,431,445,427,439,536,553,32767,32767,32767,32767,32767,32767,32767,32767,32767,32767,32767,32767,32767,532,664,718,689,754,695,32767,650,32767,32767,693,674,721,32767,32767,32767,32767,906,1146]} 1. e4 {[%emt 0:00:00]} c5 {[%emt 0:00:00]} 2. Nf3 {[%emt 0:00:00]} Nc6 {[%emt 0:00:00]} 3. d4 {[%emt 0:00:02]} cxd4 {[%emt 0:00:00]} 4. Nxd4 {[%emt 0:00:03]} Nf6 {[%emt 0:00:03]} 5. Nc3 {[%emt 0:00:04]} e6 {[%emt 0:00:07]} 6. Ndb5 {[%emt 0:00:02]} Bb4 {[%emt 0:00:10]} 7. a3 {[%emt 0:00:04]} Bxc3+ $1 {[%emt 0:00:08] LiveBook: 1156 Games} 8. Nxc3 {[%emt 0:00:14]} d5 {[%emt 0:00:12]} 9. exd5 {[%emt 0:00:08]} exd5 {[%emt 0:00:05]} 10. Bd3 {[%emt 0:00:03]} O-O {[%emt 0:00:22]} 11. O-O {[%emt 0:00:04]} h6 {[%emt 0:01:08]} 12. h3 {[%emt 0:02:19] B45: Sizilianisch (Klassisches System)} Ne5 {[%emt 0:13:10]} (12... Re8 13. Bf4 a6 14. Re1 Rxe1+ 15. Qxe1 d4 16. Na4 Be6 17. Nc5 Qe7 18. b4 Re8 19. Rd1 Nd5 {1-0 (57) Saric,I (2643)-Schneider,I (2472) Germany 2012}) 13. Bf4 {[%emt 0:00:33]} Ng6 {[%emt 0:06:04]} 14. Bxg6 $146 {[%emt 0:02:23]} ({Vorgänger:} 14. Bg3 a6 15. Re1 Ne7 16. Qf3 Nc6 17. Bh4 g5 18. Bg3 Be6 19. Bc7 Nd4 {1-0 (28) Madl,I (2394)-Shapira,L (2049) Tel Aviv 2001}) 14... fxg6 {[%emt 0:00:10]} 15. Be5 {[%emt 0:00:07]} Be6 {[%emt 0:03:21]} 16. Re1 {[%emt 0:00:12]} Kh7 {[%emt 0:03:07]} 17. Qd4 {[%emt 0:03:10]} b6 {[%emt 0:12:39]} 18. Rad1 {[%emt 0:00:17]} Rc8 {[%emt 0:01:36]} 19. Re2 {[%emt 0:03:32]} Rc4 $2 {[%emt 0:03:02] [#]} (19... Re8 $16 {is more resistant.}) 20. Qxc4 $1 {[%emt 0:03:10]} dxc4 {[%emt 0:03:51]} 21. Rxd8 {[%emt 0:00:06]} Rxd8 {[%emt 0:00:17]} 22. Bxf6 $1 {[%emt 0:00:03]} gxf6 {[%emt 0:01:47]} 23. Rxe6 {[%emt 0:00:06]} Rd2 {[%emt 0:02:01]} 24. Re2 {[%emt 0:00:20]} Rd7 {[%emt 0:00:59]} 25. Kf1 {[%emt 0:00:20]} Kg7 {[%emt 0:00:44]} 26. Ke1 {[%emt 0:00:06]} Kf7 {[%emt 0:00:24]} 27. Re4 {[%emt 0:00:12]} Rc7 {[%emt 0:00:36]} 28. Nb5 {[%emt 0:00:10]} Rc5 {[%emt 0:01:07]} 29. Nd6+ {[%emt 0:00:07]} Kf8 {[%emt 0:00:18]} 30. Re8+ {[%emt 0:01:39]} Kg7 {[%emt 0:00:34]} 31. Re7+ {[%emt 0:00:07]} Kg8 {[%emt 0:00:29]} 32. Rxa7 {[%emt 0:00:40]} c3 {[%emt 0:00:47]} 33. bxc3 {[%emt 0:01:10]} Rxc3 {[%emt 0:00:20]} 34. Kd2 {[%emt 0:00:15]} Rc6 {[%emt 0:00:23]} 35. Nb5 {[%emt 0:00:25]} Rc5 {[%emt 0:01:18]} 36. Nd4 {[%emt 0:00:14]} g5 {[%emt 0:00:43]} 37. Ra6 {[%emt 0:00:04]} Rd5 {[%emt 0:00:33]} 38. Kd3 {[%emt 0:00:18]} Rd6 {[%emt 0:00:16]} 39. c4 $18 {[%emt 0:00:06]} 1-0

[Event "FIDE WCCC G12 2018"]
[Site "Santiago de Compostela"]
[Date "2018.11.09"]
[Round "5"]
[White "Nadzamova, Viktoria"]
[Black "Bridgeman, Niamh"]
[Result "1-0"]
[ECO "C11"]
[WhiteElo "1923"]
[BlackElo "1516"]
[Annotator "NA RC"]
[PlyCount "117"]
[EventDate "2018.11.04"]
[EventType "swiss"]
[EventCountry "ESP"]
[SourceTitle "playchess.com"]
[Source "ChessBase"]
[SourceQuality "1"]
[TimeControl "40/5400+30:1800+30"]

{[%evp 8,116,0,0,0,8,0,0,3,32767,32767,32767,32767,5,14,6,14,-6,0,32767,-4,-18,0,-32,-5,-53,32767,32767,32767,32767,32767,32767,-27,-56,32767,32767,32767,32767,32767,-24,32767,-53,-63,32767,0,0,62,32767,32767,166,32767,154,150,32767,32767,32767,32767,32767,32767,32767,211,117,32767,32767,94,84,143,32767,103,56,95,96,95,59,54,63,181,179,182,173,210,86,66,0,222,175,300,117,32767,32767,106,55,228,233,273,32767,235,306,298,312,549,32767,512,554,532,625,543,656,602,741,1578]} 1. e4 {[%emt 0:00:00]} e6 {[%emt 0:00:00]} 2. d4 {[%emt 0:00:00]} d5 {[%emt 0:00:00]} 3. Nc3 {[%emt 0:00:00]} Nf6 {[%emt 0:00:00]} 4. e5 {[%emt 0:00:00]} Nfd7 {[%emt 0:00:00]} 5. f4 {[%emt 0:00:00]} c5 {[%emt 0:00:00]} 6. Nf3 {[%emt 0:00:03]} Nc6 {[%emt 0:00:05]} 7. Be3 {[%emt 0:00:05]} Be7 {[%emt 0:00:08]} 8. Be2 {[%emt 0:01:26]} O-O {[%emt 0:00:12]} 9. O-O {[%emt 0:00:06] C11: French: Classical System: 4 e5 and 4 Bg5 dxe4} b6 {[%emt 0:00:07]} 10. Qd2 {[%emt 0:22:51]} f5 {[%emt 0:00:16] LiveBook: 100 Games} 11. a3 {[%emt 0:05:11]} Bb7 {[%emt 0:01:19]} 12. Bd1 $146 {[%emt 0:08:10]} ({Predecessor:} 12. h3 cxd4 13. Nxd4 Nc5 14. b4 Nxd4 15. Bxd4 Ne4 16. Nxe4 dxe4 {0-1 (48) Hjartarson,J (2529)-Ganguly,S (2652) Berlin 2015}) 12... cxd4 {[%emt 0:02:14]} 13. Nxd4 {[%emt 0:00:41]} Nxd4 {[%emt 0:00:09]} 14. Bxd4 {[%emt 0:00:10]} Nc5 {[%emt 0:00:11]} 15. Qe3 {[%emt 0:07:18]} Kh8 {[%emt 0:08:14]} 16. g4 {[%emt 0:03:16]} g5 {[%emt 0:19:36]} 17. gxf5 {[%emt 0:13:31]} gxf4 {[%emt 0:01:26]} 18. Qh3 {[%emt 0:00:50]} Rxf5 {[%emt 0:03:51]} 19. Bg4 {[%emt 0:00:28]} Qg8 {[%emt 0:03:32]} 20. Kh1 {[%emt 0:01:07]} Rg5 {[%emt 0:00:36]} 21. Rxf4 {[%emt 0:03:05]} Rf8 {[%emt 0:00:39]} 22. Rxf8 {[%emt 0:01:59]} Bxf8 {[%emt 0:00:14]} 23. Bf3 {[%emt 0:02:07]} Nd7 {[%emt 0:01:56]} 24. Bxd5 {[%emt 0:07:17]} (24. Nxd5 $5 Qf7 25. Nf6 $11) 24... Bxd5+ {[%emt 0:14:36]} 25. Nxd5 {[%emt 0:00:08]} Rg4 {[%emt 0:01:02]} (25... Bc5 $15 26. Bxc5 Nxc5) 26. c3 {[%emt 0:04:48]} Qg6 {[%emt 0:13:12]} ({Günstiger ist} 26... Bc5 $11 27. Nc7 Bxd4 28. cxd4 Qg6) 27. Re1 {[%emt 0:08:06]} Bg7 {[%emt 0:05:12] [#]} 28. Ne7 $1 {[%emt 0:02:41]} Qg5 {[%emt 0:01:28]} 29. Be3 {[%emt 0:03:56]} Qh4 {[%emt 0:04:56]} 30. Qxh4 {[%emt 0:00:40]} Rxh4 {[%emt 0:00:08]} 31. Bd4 {[%emt 0:00:04]} Rh5 {[%emt 0:01:47]} 32. Nc6 {[%emt 0:00:43]} a6 {[%emt 0:00:56]} 33. Re2 {[%emt 0:01:18]} Rg5 $1 $11 {[%emt 0:01:50] keeps the balance.} (33... Kg8 $16 {war einen Versuch wert.}) 34. Nd8 {[%emt 0:01:05]} (34. Be3 $18 Rh5 35. Rd2) 34... Rg6 {[%emt 0:05:54]} 35. Rf2 {[%emt 0:01:47]} Kg8 {[%emt 0:02:55]} 36. Nc6 {[%emt 0:01:35]} Rg5 {[%emt 0:01:17]} 37. Re2 {[%emt 0:00:37]} Kf7 {[%emt 0:01:58]} 38. c4 {[%emt 0:00:56]} Kg6 {[%emt 0:02:45]} 39. b4 {[%emt 0:00:38]} Rg4 {[%emt 0:01:07]} 40. c5 {[%emt 0:00:00]} bxc5 {[%emt 0:00:00]} 41. bxc5 {[%emt 0:01:18]} Bf8 {[%emt 0:02:10]} (41... Kf7 $1 $14) 42. Rc2 {[%emt 0:01:52]} Re4 {[%emt 0:01:44]} 43. Kg2 {[%emt 0:02:10]} Bg7 $1 {[%emt 0:06:48]} 44. Bb2 {[%emt 0:04:03]} Bf8 {[%emt 0:01:49]} ({Not} 44... Nxc5 $2 45. Kf3 $18) 45. Bd4 {[%emt 0:00:48]} (45. Kf3 $16 Ra4 46. Bd4) 45... Bg7 {[%emt 0:00:11]} 46. Kf3 {[%emt 0:02:07]} Re1 {[%emt 0:01:23]} (46... Rh4 {keeps fighting.} 47. a4 Bf8) 47. Kf2 {[%emt 0:10:43]} (47. Rg2+ $18 {and White stays clearly on top.} Kf7 48. Nd8+ Ke8 49. Rxg7 Kxd8 50. c6 (50. Rxh7 Nxe5+ 51. Bxe5 Rxe5 $16) 50... Nxe5+ 51. Kf2 Nd3+ 52. Kg3) 47... Re4 {[%emt 0:04:59]} 48. Kg3 {[%emt 0:00:16]} Kf7 {[%emt 0:04:42] [#]} 49. Kf3 {[%emt 0:02:04]} (49. Bb2 $1 $16) 49... Re1 $2 {[%emt 0:00:52] [#]} (49... Rh4 $16 {is a better defense.}) 50. Bf2 $1 {[%emt 0:03:31]} Rd1 {[%emt 0:03:39]} 51. Nd8+ {[%emt 0:01:28]} Ke7 {[%emt 0:01:17]} 52. Bh4+ {[%emt 0:00:20]} Ke8 {[%emt 0:00:55]} 53. Nxe6 {[%emt 0:00:50]} Nxe5+ $2 {[%emt 0:01:11]} (53... Bxe5 54. c6 Nb6) 54. Ke2 {[%emt 0:00:52]} Rg1 {[%emt 0:01:25]} 55. Kf2 {[%emt 0:02:15]} Rg6 {[%emt 0:00:51]} 56. Nxg7+ {[%emt 0:00:36]} Rxg7 {[%emt 0:00:08]} 57. Re2 {[%emt 0:00:06]} Rf7+ {[%emt 0:00:17]} 58. Kg2 {[%emt 0:00:25]} Rf5 $18 {[%emt 0:00:09]} 59. Bg3 {[%emt 0:00:07]} 1-0

[Event "FIDE WCCC G12 2018"]
[Site "Santiago de Compostela"]
[Date "2018.11.09"]
[Round "5"]
[White "Omonova, Umida"]
[Black "Ke, Rianne"]
[Result "1-0"]
[ECO "C50"]
[WhiteElo "1854"]
[BlackElo "1600"]
[Annotator "NA RC"]
[PlyCount "113"]
[EventDate "2018.11.04"]
[EventType "swiss"]
[EventCountry "ESP"]
[SourceTitle "playchess.com"]
[Source "ChessBase"]
[SourceQuality "1"]
[TimeControl "40/5400+30:1800+30"]

{[%evp 12,113,25,22,32767,8,35,32767,15,8,0,16,16,12,29,-4,11,4,16,0,32767,32767,32767,32767,32767,32767,32767,32767,32767,163,32767,32767,202,199,32767,165,168,32767,32767,32767,32767,32767,167,32767,32767,32767,32767,131,135,119,166,86,175,122,103,72,82,77,32767,74,59,32767,32767,8,68,9,8,0,32767,32767,602,32767,32767,385,115,32767,773,32767,32767,5516,1041,10499,5110,29964,32767,32767,32767,12845,5609,12847,29982,12850,29981,29983,29982,29984,29989,29984,29991,220,29992,29993,29995,29994]} 1. e4 {[%emt 0:00:00]} e5 {[%emt 0:00:00]} 2. Nf3 {[%emt 0:02:30]} Nc6 {[%emt 0:00:00]} 3. Bc4 {[%emt 0:03:00]} Nf6 {[%emt 0:00:28]} 4. d3 {[%emt 0:01:00]} Bc5 {[%emt 0:00:57]} 5. O-O {[%emt 0:00:30]} d6 {[%emt 0:00:53]} 6. c3 {[%emt 0:03:40]} a6 {[%emt 0:02:27]} 7. a4 {[%emt 0:00:42] LiveBook: 458 Games} O-O {[%emt 0:01:51]} 8. Nbd2 {[%emt 0:01:12] C54: Giuoco Piano: 4 c3 Nf6, main lines with 5 d4 and 5 d3} (8. h3 Ba7 9. Re1 Ne7 10. d4 Ng6 11. Nbd2 c6 12. b4 exd4 13. cxd4 d5 14. Bd3 dxe4 15. Nxe4 Nxe4 16. Bxe4 {½-½ (24) Malakhov,V (2666)-Tomashevsky,E (2702) Biograd 2018}) 8... Be6 {[%emt 0:04:58]} 9. h3 {[%emt 0:02:19]} d5 {[%emt 0:06:44]} 10. exd5 {[%emt 0:02:03]} Bxd5 {[%emt 0:00:46]} 11. Re1 {[%emt 0:09:50]} Re8 $146 {[%emt 0:11:10]} ({Predecessor:} 11... Bxc4 12. dxc4 e4 13. Nb3 Qxd1 14. Rxd1 Bxf2+ 15. Kxf2 exf3 16. gxf3 {½-½ (34) Zvarik,M (2216)-Spanton,T (1995) Caleta 2014}) 12. Qc2 {[%emt 0:05:10]} Qd7 {[%emt 0:11:12]} 13. Bxd5 {[%emt 0:02:39]} (13. b4 $5 {[%cal Rb4c5]} Bb6 14. Bb2 $11) 13... Nxd5 {[%emt 0:02:41]} 14. Nc4 {[%emt 0:00:28]} f6 {[%emt 0:04:06]} 15. Be3 {[%emt 0:02:20]} Bxe3 {[%emt 0:05:02]} 16. Nxe3 {[%emt 0:00:10]} Kh8 {[%emt 0:02:21]} 17. Rad1 {[%emt 0:03:56]} Rad8 {[%emt 0:02:39]} 18. b4 {[%emt 0:02:33]} Ndxb4 {[%emt 0:10:16]} 19. cxb4 {[%emt 0:01:30]} Nxb4 {[%emt 0:00:09]} 20. Qb3 {[%emt 0:01:49]} Nxd3 {[%emt 0:00:56]} 21. Re2 {[%emt 0:00:37]} e4 {[%emt 0:06:15]} 22. Ne1 {[%emt 0:00:41]} Qe6 {[%emt 0:02:35]} 23. Qxe6 {[%emt 0:02:06]} Rxe6 {[%emt 0:00:20]} 24. Red2 {[%emt 0:01:10]} Red6 {[%emt 0:00:30]} 25. Nxd3 {[%emt 0:00:11]} exd3 {[%emt 0:01:12]} 26. Nc4 {[%emt 0:00:06]} Rd4 {[%emt 0:04:08]} 27. Nb2 {[%emt 0:00:05]} b5 {[%emt 0:00:57]} 28. axb5 {[%emt 0:00:07]} axb5 {[%emt 0:00:06]} 29. Rxd3 {[%emt 0:00:07]} Rxd3 {[%emt 0:00:37]} 30. Rxd3 {[%emt 0:00:05]} Rxd3 {[%emt 0:04:29]} 31. Nxd3 {[%emt 0:00:04]} Kg8 {[%emt 0:01:17]} 32. Kf1 {[%emt 0:00:19]} Kf7 {[%emt 0:00:15]} 33. Ke2 {[%emt 0:00:07]} Ke6 {[%emt 0:00:25]} 34. Kd2 {[%emt 0:01:15]} Kd5 {[%emt 0:01:18]} 35. Kc3 {[%emt 0:03:02]} c5 {[%emt 0:01:11]} 36. Nf4+ {[%emt 0:03:52]} Ke5 {[%emt 0:01:25]} 37. Nh5 {[%emt 0:00:14]} g6 {[%emt 0:00:52]} 38. Ng7 {[%emt 0:00:07]} Kd5 $1 {[%emt 0:03:54]} 39. Ne8 {[%emt 0:00:06]} b4+ {[%emt 0:01:09]} 40. Kc2 {[%emt 0:00:00]} Kd4 $2 {[%emt 0:00:00]} (40... Ke6 $11) 41. Nxf6 {[%emt 0:02:23]} c4 {[%emt 0:02:25]} 42. f3 $2 {[%emt 0:01:22]} (42. Nxh7 b3+ 43. Kb2) 42... b3+ {[%emt 0:04:34]} 43. Kb2 {[%emt 0:00:09]} c3+ $2 {[%emt 0:16:16]} (43... Kd3 $14 44. h4 (44. Nxh7 $2 c3+ 45. Kxb3 c2 $19) 44... c3+ 45. Kxb3 c2) 44. Kxb3 {[%emt 0:00:06]} Kd3 {[%emt 0:00:05]} 45. Ne4 {[%emt 0:00:07]} c2 {[%emt 0:00:41]} 46. Kb2 {[%emt 0:00:05]} g5 {[%emt 0:01:10]} 47. Kc1 {[%emt 0:00:08]} h6 {[%emt 0:00:19]} 48. g3 {[%emt 0:07:33]} Ke3 {[%emt 0:01:22]} 49. Nd2 {[%emt 0:05:15]} h5 {[%emt 0:09:18]} 50. Kxc2 $18 {[%emt 0:01:05]} h4 {[%emt 0:00:18]} 51. gxh4 {[%emt 0:00:06]} gxh4 {[%emt 0:00:04]} 52. Kd1 {[%emt 0:00:10]} Kf4 {[%emt 0:00:58]} 53. Ke2 {[%emt 0:00:13]} Kg3 {[%emt 0:00:04]} 54. Ne4+ {[%emt 0:00:08]} Kxh3 {[%emt 0:00:14]} 55. Kf2 {[%emt 0:00:11]} Kh2 {[%emt 0:00:04]} 56. Ng5 {[%emt 0:00:07]} h3 {[%emt 0:00:14]} 57. f4 {[%emt 0:00:11]} 1-0

[Event "FIDE WCCC G12 2018"]
[Site "Santiago de Compostela"]
[Date "2018.11.09"]
[Round "5"]
[White "Sheikh, Anum"]
[Black "Zhai, Pinran"]
[Result "0-1"]
[ECO "B84"]
[WhiteElo "1770"]
[BlackElo "1558"]
[Annotator "NA RC"]
[PlyCount "58"]
[EventDate "2018.11.04"]
[EventType "swiss"]
[EventCountry "ESP"]
[SourceTitle "playchess.com"]
[Source "ChessBase"]
[SourceQuality "1"]
[TimeControl "40/5400+30:1800+30"]

1. e4 {[%emt 0:00:00]} c5 {[%emt 0:00:00]} 2. Nf3 {[%emt 0:00:00]} d6 {[%emt 0:00:00]} 3. d4 {[%emt 0:00:00]} cxd4 {[%emt 0:00:06]} 4. Nxd4 {[%emt 0:00:00]} Nf6 {[%emt 0:00:46]} 5. Nc3 {[%emt 0:00:00]} a6 {[%emt 0:00:14]} 6. Be2 {[%emt 0:00:14]} e6 {[%emt 0:00:19]} 7. Be3 {[%emt 0:00:24]} Be7 {[%emt 0:00:33]} 8. O-O {[%emt 0:00:15]} Nbd7 {[%emt 0:00:19]} 9. f4 {[%emt 0:01:14]} Qc7 {[%emt 0:00:24]} 10. a4 {[%emt 0:01:59]} b6 {[%emt 0:04:10]} 11. Bf3 {[%emt 0:00:40]} Bb7 {[%emt 0:00:45]} 12. Qe1 {[%emt 0:01:16]} Nc5 {[%emt 0:10:05]} 13. Bd2 {[%emt 0:09:26]} Rd8 {[%emt 0:18:15]} 14. b4 {[%emt 0:12:39]} Ncd7 {[%emt 0:05:11]} 15. Nb3 {[%emt 0:05:26]} O-O {[%emt 0:01:07]} 16. e5 {[%emt 0:22:51]} Ne8 {[%emt 0:00:51]} 17. Bxb7 {[%emt 0:06:46]} Qxb7 {[%emt 0:00:13]} 18. b5 {[%emt 0:00:30]} a5 {[%emt 0:04:10]} 19. Nd4 {[%emt 0:03:02]} Nb8 {[%emt 0:00:19]} 20. Nf3 {[%emt 0:05:47]} Qc7 {[%emt 0:02:26]} 21. Be3 {[%emt 0:03:34]} dxe5 {[%emt 0:00:38]} 22. Nxe5 {[%emt 0:01:16]} Bb4 {[%emt 0:00:28]} 23. Bd2 {[%emt 0:13:48]} Rxd2 {[%emt 0:00:11]} 24. Qxd2 {[%emt 0:00:06]} Bxc3 {[%emt 0:00:06]} 25. Qe2 {[%emt 0:00:35]} Bxa1 {[%emt 0:00:17]} 26. Rxa1 {[%emt 0:00:06]} Nf6 {[%emt 0:00:05]} 27. c4 {[%emt 0:00:39]} h6 {[%emt 0:00:27]} 28. Kh1 {[%emt 0:00:57]} Rd8 {[%emt 0:00:58]} 29. Qe3 {[%emt 0:01:08]} Nfd7 {[%emt 0:00:24]} 0-1

[Event "FIDE WCCC G12 2018"]
[Site "Santiago de Compostela"]
[Date "2018.11.09"]
[Round "5"]
[White "Wagner, Margarethe"]
[Black "Toth, Manoush"]
[Result "1-0"]
[ECO "B90"]
[WhiteElo "1766"]
[BlackElo "1576"]
[Annotator "NA RC"]
[PlyCount "93"]
[EventDate "2018.11.04"]
[EventType "swiss"]
[EventCountry "ESP"]
[SourceTitle "playchess.com"]
[Source "ChessBase"]
[SourceQuality "1"]
[TimeControl "40/5400+30:1800+30"]

1. e4 {[%emt 0:00:00]} c5 {[%emt 0:00:00]} 2. Nf3 {[%emt 0:00:00]} d6 {[%emt 0:00:00]} 3. d4 {[%emt 0:00:07]} cxd4 {[%emt 0:00:01]} 4. Nxd4 {[%emt 0:00:12]} Nf6 {[%emt 0:00:11]} 5. Nc3 {[%emt 0:00:53]} a6 {[%emt 0:00:09]} 6. f3 {[%emt 0:00:39]} e5 {[%emt 0:00:13]} 7. Nb3 {[%emt 0:00:17]} Be6 {[%emt 0:00:26]} 8. Be3 {[%emt 0:00:55]} Be7 {[%emt 0:00:18]} 9. Qd2 {[%emt 0:00:48]} O-O {[%emt 0:00:22]} 10. O-O-O {[%emt 0:00:50]} Nbd7 {[%emt 0:00:22]} 11. g4 {[%emt 0:01:55]} b5 {[%emt 0:00:14]} 12. g5 {[%emt 0:01:35]} b4 {[%emt 0:00:10]} 13. Nd5 {[%emt 0:06:11]} Nxd5 {[%emt 0:04:55]} 14. exd5 {[%emt 0:01:04]} Bf5 {[%emt 0:01:13]} 15. h4 {[%emt 0:07:26]} a5 {[%emt 0:05:55]} 16. Kb1 {[%emt 0:10:56]} a4 {[%emt 0:04:34]} 17. Nc1 {[%emt 0:04:31]} b3 {[%emt 0:00:45]} 18. axb3 {[%emt 0:05:39]} axb3 {[%emt 0:05:40]} 19. Nxb3 {[%emt 0:02:09]} Qb8 {[%emt 0:05:08]} 20. Bd3 {[%emt 0:04:40]} Bxd3 {[%emt 0:06:25]} 21. Qxd3 {[%emt 0:00:23]} Qb4 {[%emt 0:03:38]} 22. Qe4 {[%emt 0:07:12]} Qxe4 {[%emt 0:02:07]} 23. fxe4 {[%emt 0:00:08]} Ra4 {[%emt 0:02:08]} 24. Nd2 {[%emt 0:02:13]} Rfa8 {[%emt 0:05:38]} 25. b3 {[%emt 0:04:52]} Ra1+ {[%emt 0:02:41]} 26. Kb2 {[%emt 0:00:07]} R1a2+ {[%emt 0:00:18]} 27. Kc3 {[%emt 0:04:24]} Rc8+ {[%emt 0:01:28]} 28. Nc4 {[%emt 0:00:28]} Rf8 {[%emt 0:14:24]} 29. Ra1 {[%emt 0:02:52]} Rfa8 {[%emt 0:02:57]} 30. Rxa2 {[%emt 0:00:56]} Rxa2 {[%emt 0:00:14]} 31. b4 {[%emt 0:01:56]} f6 {[%emt 0:05:47]} 32. b5 {[%emt 0:02:27]} Ra8 {[%emt 0:03:26]} 33. Rb1 {[%emt 0:02:24]} fxg5 {[%emt 0:04:23]} 34. Bxg5 {[%emt 0:03:36]} Kf7 {[%emt 0:02:26]} 35. Rf1+ {[%emt 0:05:26]} Ke8 {[%emt 0:01:56]} 36. Be3 {[%emt 0:04:24]} Nf6 {[%emt 0:03:04]} 37. Kd3 {[%emt 0:00:29]} Rb8 {[%emt 0:02:09]} 38. b6 {[%emt 0:01:26]} Ng4 {[%emt 0:04:23]} 39. Rb1 {[%emt 0:03:15]} Nxe3 {[%emt 0:00:22]} 40. Kxe3 {[%emt 0:00:00]} Kd7 {[%emt 0:00:00]} 41. h5 {[%emt 0:02:35]} Bd8 {[%emt 0:04:48]} 42. Kd3 {[%emt 0:03:18]} Be7 {[%emt 0:07:33]} 43. Ra1 {[%emt 0:03:18]} Rb7 {[%emt 0:07:45]} 44. Ra7 {[%emt 0:02:31]} Kc8 {[%emt 0:03:05]} 45. Na5 {[%emt 0:01:13]} Rxb6 {[%emt 0:01:01]} 46. Rxe7 {[%emt 0:00:15]} Ra6 {[%emt 0:00:27]} 47. Nc4 {[%emt 0:00:21]} 1-0